Cogmind - Beta 13 @@@ ROGUE MODE // 2024.04.18 @ 18:38:10 Player: N00Bk1llr Result: Destroyed by I0-RKI(R) with Subdweller Machine Gun Performance ------------- Evolutions (0) 0 Regions Visited (2) 400 Robots Destroyed (19) 95 Value Destroyed (468) 468 Prototype IDs (2) 40 Alien Tech Used (0) 0 Bonus (0) 0 TOTAL SCORE: 1003 Bonus ------- None Cogmind --------- Core Integrity 0/250 Matter 298/300 Energy 89/100 System Corruption 1% Temperature Cool (0) Movement Treading (160) Location -10/Subcaves Parts ------- > --- POWER (1) -------- (None) > --- PROPULSION (2) --- Light Treads Light Treads > --- UTILITY (2) ------ Medium Storage Unit Light Armor Plating > --- WEAPON (2) ------- Subdweller Beam Cannon Subdweller Machine Gun > --- INVENTORY (10) --- Structural Scanner Seismic Detector Assault Rifle Grenade Launcher Grenade Launcher Maul Heavy Hammer Peak State ------------ > --- POWER ------------ Light Ion Engine > --- PROPULSION ------- Light Treads Light Treads > --- UTILITY ---------- Medium Storage Unit Power Shielding > --- WEAPON ----------- Assault Rifle Heavy Hammer > --- INVENTORY -------- Light Ion Engine Light Treads Light Treads Seismic Detector Light Armor Plating Assault Rifle Grenade Launcher Grenade Launcher Maul [Rating: 9] Favorites ----------- Power Light Ion Engine Engine Light Ion Engine Propulsion Light Treads Treads Light Treads Utility Medium Storage Unit Storage Medium Storage Unit Protection Power Shielding Weapon Assault Rifle Energy Cannon Subdweller Beam Cannon Ballistic Gun Assault Rifle Launcher Grenade Launcher Impact Weapon Heavy Hammer Build | -11 -10 -10 ------- Run | Yrd Mat Sub Slots Evolved . | . . . Power . | . . . Propulsion . | . . . Utility . | . . . Weapon . | . . . Parts Attached 18 | 6 9 3 Power 2 | 1 1 . Engine 2 | 1 1 . Core . | . . . Reactor . | . . . Propulsion 4 | 2 2 . Treads 4 | 2 2 . Leg . | . . . Wheel . | . . . Hover . | . . . Flight . | . . . Utility 4 | 1 2 1 Device . | . . . Storage 2 | 1 1 . Processor . | . . . Hackware . | . . . Protection 2 | . 1 1 Artifact . | . . . Weapon 8 | 2 4 2 Energy Gun . | . . . Energy Cannon 1 | . . 1 Ballistic Gun 3 | 2 . 1 Ballistic Cannon . | . . . Launcher 1 | . 1 . Special Weapon . | . . . Impact Weapon 3 | . 3 . Slashing Weapon . | . . . Piercing Weapon . | . . . Special Melee Weapon . | . . . Unidentified Prototypes . | . . . Parts Lost 5 | . 5 . Power 2 | . 2 . Propulsion 2 | . 2 . Utility . | . . . Weapon 1 | . 1 . Highest Loss Streak 4 | . 4 . To Critical Strikes . | . . . Average Slot Usage (%) 88 | . 92 80 Engine 7 | . 11 . Treads 27 | . 27 28 Storage 14 | . 14 14 Protection 13 | . 12 14 Energy Cannon 3 | . . 9 Ballistic Gun 12 | . 15 6 Launcher 1 | . 2 . Impact Weapon 7 | . 7 7 Naked Turns . | . . . Heaviest Build 25 | 12 22 25 Greatest Support 40 | 40 40 40 Greatest Overweight (x) 4 | 3 4 . Average Overweight (x) . | . . . Largest Inventory Capacity 10 | 8 10 10 Average Capacity 9 | 7 9 10 Most Carried 9 | 1 9 7 Average Carried 6 | . 6 6 Final Capacity 10 | 8 10 10 Final Carried 7 | 1 7 7 Class Distribution -------------------- 100% | Mutant Dominant Class ---------------- Mutant | -10/Materials Mutant | -10/Subcaves Resources | -11 -10 -10 ----------- Run | Yrd Mat Sub Matter Collected 545 | 225 194 126 Remotely . | . . . Salvage Created 427 | . 312 115 Parts 24 | . 20 4 Haulers Intercepted 1 | . 1 . Recyclers Shooed . | . . . Parts Field Recycled . | . . . Retrieved Matter . | . . . Parts Self-Destructed 11 | . . 11 Prevented . | . . . Kills | -11 -10 -10 ------- Run | Yrd Mat Sub Combat Hostiles Destroyed 14 | . 11 3 Melee 3 | . 3 . Guns 3 | . 3 . Cannons 2 | . . 2 AOE 3 | . 3 . Classes Destroyed 8 | . 7 1 Builder 1 | . 1 . Tunneler 1 | . 1 . Hauler 1 | . 1 . Operator 1 | . 1 . Watcher 1 | . 1 . Swarmer 4 | . 4 . Grunt 9 | . 7 2 Subdweller 1 | . . 1 Best Kill Streak 4 | . 4 1 Combat Bots Only 3 | . 3 1 Max Kills in Single Turn 2 | . 2 1 Gunslinging . | . . . Exploded 1 | . 1 . Melee 1 | . 1 . Uniques/NPCs Destroyed . | . . . Combat | -11 -10 -10 -------- Run | Yrd Mat Sub Hostile Shots Fired 106 | . 70 36 Missed 23 | . 15 8 Damage Taken 1145 | . 725 420 Core 271 | . 182 89 Absorbed by Shields . | . . . Redirected to Shielding 20 | . 20 . Core Remaining (%) 100 | 100 . . Volleys Fired 37 | . 20 17 Largest 2 | . 2 2 Hottest 110 | . 50 110 Shots Fired 65 | . 39 26 Gun 41 | . 33 8 Cannon 18 | . . 18 Launcher 6 | . 6 . Special . | . . . Kinetic 41 | . 33 8 Thermal 18 | . . 18 Explosive 6 | . 6 . Electromagnetic . | . . . Robot Hit Streak 6 | . 6 5 Robot Miss Streak 3 | . 3 2 Penetration Max . | . . . Secondary Targets . | . . . Shots Hit Robots 60 | . 40 20 Core Hits 22 | . 18 4 Critical Kills 1 | . 1 . Critical Parts Destroyed 4 | . 3 1 Critical Strikes 5 | . 4 1 Smash 5 | . 4 1 Melee Attacks 44 | . 39 5 Impact 44 | . 39 5 Slashing . | . . . Piercing . | . . . Sneak Attacks 3 | . 3 . Combat Hostiles . | . . . Follow-up Attacks . | . . . Damage Inflicted 1998 | . 1367 631 Guns 297 | . 186 111 Cannons 366 | . . 366 Explosions 355 | . 355 . Melee 980 | . 826 154 Ramming . | . . . Kinetic 297 | . 186 111 Thermal 366 | . . 366 Explosive 355 | . 355 . Electromagnetic . | . . . Impact 980 | . 826 154 Slashing . | . . . Piercing . | . . . Highest Corruption 1 | . 1 1 Average Corruption 1 | . 1 1 Corruption Purged . | . . . Corruption Blocked . | . . . Effects 4 | . . 4 Matter Fused 2 | . . 2 Data Loss (minor) 1 | . . 1 Misfires 1 | . . 1 Overload Shots . | . . . Overflow Damage 338 | . 265 73 Projectiles . | . . . Explosions . | . . . Melee 338 | . 265 73 Knockbacks 8 | . 7 1 Impact 8 | . 7 1 Kinetic . | . . . Secondary . | . . . Self-Inflicted Damage . | . . . Shots . | . . . Rammed . | . . . Targets Rammed . | . . . Kicked . | . . . Crushed . | . . . Highest Temperature 34 | . 13 34 Average Temperature 10 | . 7 12 Received Heat Transfer 357 | . 225 132 Siege Activations . | . . . Robots Corrupted . | . . . Combat Hostiles . | . . . Parts Fried 4 | . 4 . Impact Corruptions 14 | . 11 3 Robots Melted . | . . . Combat Hostiles . | . . . Parts Melted . | . . . Heat Transferred 481 | . . 481 Parts Sabotaged . | . . . Parts Stolen . | . . . Parts Stripped . | . . . Power Chain Reactions . | . . . Alert | -11 -10 -10 ------- Run | Yrd Mat Sub Peak Influence 232 | . 232 . Initial . | . . . Average 79 | . 85 . Maximum Alert Level 1 | . 1 . Low Security (%) 92 | 100 92 . Level 1 7 | . 7 . Level 2 . | . . . Level 3 . | . . . Level 4 . | . . . Level 5 . | . . . High Security . | . . . Max Security . | . . . Squads Dispatched 3 | . 3 . Investigation 2 | . 2 . Extermination . | . . . Reinforcement 1 | . 1 . Assault . | . . . Garrison . | . . . Intercept . | . . . Searches Triggered . | . . . Construction Impeded . | . . . Haulers Reinforced . | . . . Active Scanning Responses . | . . . Cargo Convoy Interrupts . | . . . Stealth | -11 -10 -10 --------- Run | Yrd Mat Sub Distress Signals 3 | . 3 . Communications Jammed . | . . . Distress Signals . | . . . Times Spotted 24 | . 20 4 Peak Tracking Total 4 | . 4 2 Tactical Retreats 2 | . 2 . Traps | -11 -10 -10 ------- Run | Yrd Mat Sub Traps Triggered 1 | . 1 . Indirectly . | . . . Trap Hack Attempts . | . . . Triggered . | . . . Disarmed . | . . . Reprogrammed . | . . . Reused . | . . . Traps Extracted . | . . . Installed . | . . . Triggered . | . . . Machines | -11 -10 -10 ---------- Run | Yrd Mat Sub Machines Disabled 1 | . 1 . Max in Single Turn 1 | . 1 . Machines Repaired . | . . . Machines Dismantled . | . . . Machines Sabotaged . | . . . Overloaded Fab Kills . | . . . Hacking | -11 -10 -10 --------- Run | Yrd Mat Sub Machines Accessed 7 | . 7 . Terminals 6 | . 6 . Fabricators . | . . . Repair Stations . | . . . Recycling Units 1 | . 1 . Scanalyzers . | . . . Garrison Access . | . . . Total Hacks 17 | . 17 . Successful 6 | . 6 . Failed 11 | . 11 . Catastrophic 4 | . 4 . Database Lockouts . | . . . Manual 6 | . 6 . Terminals 14 | . 14 . Fabricators . | . . . Repair Stations . | . . . Recycling Units 3 | . 3 . Scanalyzers . | . . . Garrison Access . | . . . Terminal Hacks 6 | . 6 . Prototype ID Bank 1 | . 1 . Branch Access Points 1 | . 1 . Terminal Index 1 | . 1 . Locate Traps 2 | . 2 . Hauler Manifests 1 | . 1 . Fabricator Hacks . | . . . Repair Station Hacks . | . . . Recycling Unit Hacks . | . . . Scanalyzer . | . . . Garrison Access Hacks . | . . . Unauthorized Hacks . | . . . Terminals . | . . . Fabricators . | . . . Repair Stations . | . . . Recycling Units . | . . . Scanalyzers . | . . . Garrison Access . | . . . Data Cores Recovered . | . . . Used . | . . . Hacking Detections 7 | . 7 . Full Trace Events 3 | . 3 . Feedback Events 1 | . 1 . Corruption 1 | . 1 . Feedback Blocked . | . . . Robot Schematics Acquired . | . . . Robots Built . | . . . Authchips . | . . . Time . | . . . Total Robot Build Rating . | . . . Part Schematics Acquired . | . . . Parts Built . | . . . Authchips . | . . . Time . | . . . Total Part Build Rating . | . . . Parts Repaired . | . . . Time . | . . . Parts Recycled . | . . . Recycled Matter . | . . . Retrieved Matter . | . . . Retrieved Components . | . . . Parts Scanalyzed . | . . . Part Schematics Acquired . | . . . Parts Damaged . | . . . Bothacking | -11 -10 -10 ------------ Run | Yrd Mat Sub Used RIF Installer . | . . . Robots Hacked . | . . . Non-combat . | . . . Combat . | . . . Robot Hacks Applied . | . . . Relay Couplers Released . | . . . Fabnet Peak Effective % . | . . . Robots Rewired . | . . . Allies Hacked . | . . . Hacks Repelled . | . . . Allies | -11 -10 -10 -------- Run | Yrd Mat Sub Total Allies . | . . . Largest Group . | . . . Highest-Rated Group . | . . . Highest-Rated Ally . | . . . Total Orders . | . . . Ally Attacks . | . . . Total Damage . | . . . Kills . | . . . Allies Corrupted . | . . . Allies Melted . | . . . Intel | -11 -10 -10 ------- Run | Yrd Mat Sub Robot Analysis Total . | . . . Derelict Logs Recovered . | . . . Drone Launches . | . . . Drone Recoveries . | . . . Exploration | -11 -10 -10 ------------- Run | Yrd Mat Sub Turns Passed 1693 | 81 1092 520 Spaces Moved 890 | 45 560 285 Core 13 | 10 3 . Treads 877 | 35 557 285 Legs . | . . . Wheels . | . . . Hover . | . . . Flight . | . . . Fastest Speed 50 | 50 160 160 Average Speed 160 | 160 160 160 Slowest Speed 250 | 200 250 160 Overloaded Moves . | . . . Propulsion Burnouts . | . . . Robots Hopped . | . . . Cave-ins Triggered . | . . . Exploration Rate (%) 39 | 5 96 17 Regions Visited 2 Branch Regions 1 Pre-discovered Areas . | . . . Known Exits Taken . | . . . Unknown Exits Taken 2 | 1 1 . Scrap Searched 1 | . . 1 Spaces Dug 10 | . 10 . Terrain Destroyed 43 | . 43 . Melee 10 | . 10 . Projectile . | . . . AOE 33 | . 33 . Terrain Rammed . | . . . Walls Destroyed . | . . . Machines Disabled . | . . . Actions | -11 -10 -10 --------- Run | Yrd Mat Sub Total 1010 | 51 644 315 Wait 9 | . 6 3 Move 888 | 44 559 285 Hop . | . . . Pick Up 11 | 1 9 1 Fast Attach 9 | 6 2 1 Attach 3 | . 3 . Detach 1 | . 1 . Swap 6 | . 4 2 Drop 2 | . 1 1 Fire 37 | . 20 17 Melee 44 | . 39 5 Ram . | . . . Kick . | . . . Crush . | . . . Escape Stasis . | . . . Rewire . | . . . Trap . | . . . Miscellaneous . | . . . Route ------- -11/Scrapyard -10/Materials (discovered 6 exits: [*Mat x3] / *Min x2 / [*Sub]) -10/Subcaves History --------- Turn | Location | Event 5 | -11/Scrapyard | Discovered new exit (range 16) 82 | -11/Scrapyard | Entered Materials 165 | -10/Materials | Discovered new exit (range 12) 314 | -10/Materials | Build established: Mutant 331 | -10/Materials | Discovered new exit (range 15) 529 | -10/Materials | Discovered new exit (range 15) 691 | -10/Materials | Discovered new exit (range 7) 937 | -10/Materials | Core integrity fell below 50% 942 | -10/Materials | Discovered new exit (range 15) 950 | -10/Materials | Identified exit to Mines 973 | -10/Materials | Lost 4 parts (1p2n1w) 1158 | -10/Materials | Discovered new exit (range 11) 1174 | -10/Materials | Entered Subcaves 1320 | -10/Subcaves | Shifting Twisted Machinery released Sub. Beam Cannon 1393 | -10/Subcaves | Core integrity fell below 20% 1694 | -10/Subcaves | Destroyed by I0-RKI(R) with Subdweller Machine Gun Last Messages --------------- 01396_ G-34 Mercenary knocked back. 01404_ Destroyed Heat Sink. 01404_ Destroyed Aluminum Leg. 01404_ G-34 Mercenary system corrupted by crushing effect. 01404_ G-34 Mercenary system corrupted by crushing effect. 01405_ G-34 Mercenary system terminally corrupted. 01407_ Acquired 24 matter. 01414_ Acquired 60 matter. 01433_ Dropped Power Shielding. 01441_ Searching scrap... 01441_ Found Sub. Machine Gun. 01441_ Found 27 Matter. 01442_ Acquired 11 matter. 01444_ Acquired Sub. Machine Gun. 01487_ System corrupted: Matter fused (-7). 01631_ QV-HEV(R) destroyed. 01642_ Acquired 31 matter. Map ----- +----------------------------------------------------+ | ?????????????????????????????????????????????????? | | ?????????????????????????????????????????????????? | | ?????????????????????????????????????????????????? | | ?????????????????????????????????????????????????? | | ?????????????????????????????????????????????????? | | ?????????????????????????????????????????????????? | | ?????????????????????????????????????????????????? | | ?????????????????????????????????????????????????? | | ?????????????????????????????????????????????????? | | ?????????????????????????????????????????????????? | | ?????????????????????????????????????????????????? | | ??????????????????????????????????? ?????????????? | | ??????????????????????????????# ???????????? | | ?????????????????????????????## ???????????? | | ?????????????????????????????? ???????????? | | ??????????????????????????????# ????????????? | | ??????????????????????????????# #?????????????? | | ?????????????????????????????## #?????????????? | | ?????????????????????###????## ##????????????? | | ????????????????????## ##### ###???????#### | | ????????????????????# "##?????## # | | ?????????????????????# " ##????#"" # | | ??????????????????????# " ##??##"" | | ?????????????????????## ## " #### """ | | ?????????????????????# R###??# & " " | | ?????????????????????# @#????# = | | ?????????????????????# #????# | | ??????#####??????????## #????# | | ??????# #????????## ###### | | ???????# #??????## # ## ## | | ????????# ##???## ## | | ?????????# #### ## | | ????????????# ## ######## ## | | ????????????## ## #####??????### #### | | ?????????????## ### #????????????######??##### | | ?????????????## #? #????????????????????????? | | ?????????????# #### ##????????????????????????? | | ?????????????# ######?????????????????????????? | | ?????# # # ## ###????????????????????????? | | ??????# #????????????????????????? | | ???????# #????????????????????????? | | ???????# ### #????????????????????????? | | ???????## ??# ##????????????????????????? | | ????????#? #?????????????????????????? | | ????????# ##?????????????????????????? | | ????????# #??????????????????????????? | | ??????? ##??????????????????????????? | | ??????# ###???????????????????????????? | | ?????# #### ###?????????????????????????????? | | ?????? ???# ????????????????????????????????? | +----------------------------------------------------+ Best States ------------- Heat Dissipation 25 Energy Generation 10 Energy Capacity 125 Matter Stores 300 Matter Capacity 300 Sight Range 16 Terrain Scan Density 10 Armor Coverage 150 Power Shielding 33 Evasion (%) 40 Recoil Reduction 2 Item Schematics ----------------- None Robot Schematics ------------------ None Fabricated ------------ Nothing Alien Tech Used ----------------- None Achievements -------------- None Challenges ------------ None Game ------ Seed DeuteriumAntimissileShifter Manual? 0 Play Time 00:13:44 Cumulative 46.5 hours Start 2024.04.18 @ 08:25:39 End 2024.04.18 @ 18:38:10 Sessions 6 Manual Loads 0 Difficulty Rogue Special Mode None Game No. 82 Rogue 60 Adventurer 22 Explorer 0 Win Type - Total 1 Types 1/0/0/0/0/0/0/0/0 Lore% 30 Gallery% 46 Achievement% 42 Wizard Run 0 Options --------- Layout 2 ASCII 0 Keyboard 0 Movement Mouse Keybinds 0 Fullscreen 2 Font 24/Smallcaps Map View 50x44 Zoom Use 0% Tactical HUD 1 Map Filters NONE Filters NONE Steam 1 RUN: cc6b6892-9c48-45cf-859e-8759643ac129